[Event "Tata Steel-B 79th"]
[Site "Wijk aan Zee"]
[Date "2017.01.16"]
[Round "3"]
[White "Smirin, Ilia"]
[Black "Jones, Gawain C B"]
[Result "1-0"]
[ECO "C78"]
[WhiteElo "2667"]
[BlackElo "2665"]
[Annotator "ChessBase II"]
[PlyCount "71"]
[EventDate "2017.01.14"]
[EventType "tourn"]
[EventRounds "13"]
[EventCountry "NED"]
[EventCategory "14"]
[SourceTitle "CBM 177"]
[Source "ChessBase"]
[SourceDate "2017.03.16"]
[SourceVersion "1"]
[SourceVersionDate "2017.03.16"]
[SourceQuality "1"]
[TimeControl "40/6000+30:20/3000+30:900+30"]

1. e4 {[%emt 0:00:00]} e5 {[%emt 0:00:15]} 2. Nf3 {[%emt 0:00:25]} Nc6 {
[%emt 0:00:06]} 3. Bb5 {[%emt 0:01:12]} a6 {[%emt 0:00:07]} 4. Ba4 {[%emt 0:00:
04]} Nf6 {[%emt 0:00:06]} 5. d3 {[%emt 0:00:34]} b5 {[%emt 0:00:57]} 6. Bb3 {
[%emt 0:02:02]} Bc5 {[%emt 0:00:08]} 7. O-O {[%emt 0:02:08]} d6 {[%emt 0:02:29]
} 8. a4 {[%emt 0:02:49]} Rb8 {[%emt 0:03:45]} 9. axb5 {[%emt 0:01:17]} axb5 {
[%emt 0:00:11]} 10. Be3 {[%emt 0:01:23]} Bxe3 {[%emt 0:04:20]} 11. fxe3 {
[%emt 0:00:06]} O-O {[%emt 0:01:05]} 12. Nc3 {[%emt 0:01:25]} Ne7 $146 {
[%emt 0:06:04]} (12... Be6 13. Nd5 Bxd5 14. exd5 Ne7 15. e4 Ng6 16. Qd2 Ra8 17.
Ra5 Qb8 18. Rfa1 Qb6+ 19. Kh1 Rxa5 20. Qxa5 Qf2 21. Qd2 Qb6 22. g3 Ng4 23. h3
Nh6 24. g4 Nf4 25. Kh2 f6 26. d4 Nf7 27. Qa5 Qb8 28. Qa7 Qc8 29. Qa6 Qb8 30.
Ra5 h5 31. Qxb5 Qc8 32. Qa6 Qd8 33. Qf1 hxg4 34. hxg4 Qd7 35. Kg3 Nh6 36. Nh2
Qf7 37. Ra7 Qg6 38. Kf3 f5 39. exf5 Nxf5 40. gxf5 Rxf5 41. Qh1 e4+ 42. Ke3 {
Fressinet,L (2638)-Grischuk,A (2719) playchess.com INT 2004 0-1}) 13. Nd5 {
[%emt 0:18:16]} Nfxd5 {[%emt 0:06:28]} 14. Bxd5 {[%emt 0:01:59]} c6 {[%emt 0:
09:10]} 15. Bb3 {[%emt 0:00:51]} Ng6 {[%emt 0:00:39]} 16. Qe1 {[%emt 0:02:06]}
c5 {[%emt 0:11:13]} 17. Ra7 {[%emt 0:05:45]} c4 {[%emt 0:24:59]} 18. dxc4 {
[%emt 0:00:36]} Qb6 {[%emt 0:00:50]} 19. Ra5 {[%emt 0:05:56]} bxc4 {[%emt 0:01:
33]} 20. Bxc4 {[%emt 0:01:17]} Be6 {[%emt 0:00:12]} 21. Ra6 {[%emt 0:23:41]}
Qxb2 {[%emt 0:01:21]} 22. Bxe6 {[%emt 0:00:40]} fxe6 {[%emt 0:00:06]} 23. Qe2 {
[%emt 0:09:11]} Qb4 {[%emt 0:13:07]} 24. c4 {[%emt 0:08:09]} Qc5 {[%emt 0:02:
20]} 25. Kh1 {[%emt 0:03:05]} Rb3 {[%emt 0:04:00]} 26. Re1 {[%emt 0:01:28]} Qb4
{[%emt 0:07:12]} 27. Rd1 {[%emt 0:02:42]} Rd8 {[%emt 0:08:14]} 28. Ng5 {
[%emt 0:01:38]} Rb1 {[%emt 0:00:51]} 29. h3 {[%emt 0:01:58]} Nf8 {[%emt 0:01:
41]} 30. Ra7 {[%emt 0:02:29]} h6 {[%emt 0:01:26]} 31. Qf3 {[%emt 0:01:54]}
Rxd1+ {[%emt 0:00:16]} 32. Kh2 {[%emt 0:00:03]} Nd7 {[%emt 0:00:38]} 33. Qf7+ {
[%emt 0:00:18]} Kh8 {[%emt 0:00:00]} 34. Rxd7 {[%emt 0:00:22]} Rg8 {[%emt 0:00:
57]} 35. Qxg8+ {[%emt 0:00:14]} Kxg8 {[%emt 0:00:04]} 36. Rd8# {[%emt 0:00:04]}
1-0